[Event "Early-Titled-Tuesday-Blitz-March-26-2024"]
[Site "Chess.com"]
[Date "2024.03.26"]
[Round "6"]
[White "profedechess93"]
[Black "Brahianzevich"]
[Result "1-0"]
[WhiteElo "2657"]
[BlackElo "2458"]
[TimeControl "180+1"]
[EndTime "9:05:17 PDT"]
[Termination "profedechess93 won on time"]

1. e4 {[%clk 0:03:00.9]} 1... c5 {[%clk 0:02:59.7]} 2. Nf3 {[%clk 0:02:59.6]}
2... d6 {[%clk 0:03:00.1]} 3. Bb5+ {[%clk 0:02:59.1]} 3... Nd7 {[%clk
0:02:58.6]} 4. d4 {[%clk 0:02:58.9]} 4... cxd4 {[%clk 0:02:59]} 5. Qxd4 {[%clk
0:02:58.2]} 5... a6 {[%clk 0:02:57]} 6. Bxd7+ {[%clk 0:02:55.1]} 6... Bxd7
{[%clk 0:02:57.9]} 7. Bg5 {[%clk 0:02:55]} 7... h6 {[%clk 0:02:55.5]} 8. Bh4
{[%clk 0:02:53.5]} 8... Qa5+ {[%clk 0:02:17.7]} 9. Nc3 {[%clk 0:02:52.5]} 9...
Rc8 {[%clk 0:01:53.7]} 10. O-O-O {[%clk 0:02:50.6]} 10... Nf6 {[%clk 0:01:32.9]}
11. e5 {[%clk 0:02:47.5]} 11... dxe5 {[%clk 0:01:25.5]} 12. Nxe5 {[%clk
0:02:48.4]} 12... Be6 {[%clk 0:01:23.4]} 13. Rhe1 {[%clk 0:02:40.1]} 13... Qc5
{[%clk 0:00:57.2]} 14. Qa4+ {[%clk 0:02:29.7]} 14... b5 {[%clk 0:00:53.3]} 15.
Qxa6 {[%clk 0:02:29.8]} 15... b4 {[%clk 0:00:46.4]} 16. Qb5+ {[%clk 0:02:29.6]}
16... Qxb5 {[%clk 0:00:40.7]} 17. Nxb5 {[%clk 0:02:30.5]} 17... Bxa2 {[%clk
0:00:37.4]} 18. Bxf6 {[%clk 0:01:53.3]} 18... gxf6 {[%clk 0:00:26.8]} 19. Nd7
{[%clk 0:01:49.9]} 19... Be6 {[%clk 0:00:17]} 20. Nb6 {[%clk 0:01:46.4]} 20...
Rc6 {[%clk 0:00:14.3]} 21. Na8 {[%clk 0:01:35.8]} 21... Bd7 {[%clk 0:00:09.8]}
22. Nac7+ {[%clk 0:01:30.2]} 22... Kd8 {[%clk 0:00:09.9]} 23. Nd5 {[%clk
0:01:29.1]} 23... Rc5 {[%clk 0:00:06.3]} 24. Na7 {[%clk 0:01:09.3]} 24... Ra5
{[%clk 0:00:02.4]} 25. Nc8 {[%clk 0:00:36.7]} 25... Ra1+ {[%clk 0:00:01.7]} 26.
Kd2 {[%clk 0:00:37.3]} 26... Rxd1+ {[%clk 0:00:01.8]} 27. Rxd1 {[%clk
0:00:37.8]} 27... Kxc8 {[%clk 0:00:02]} 28. Ke2 {[%clk 0:00:37.6]} 28... Be6
{[%clk 0:00:02.4]} 29. Nxb4 {[%clk 0:00:37]} 29... Bg7 {[%clk 0:00:02.5]} 30.
Nc6 {[%clk 0:00:37.2]} 30... Kc7 {[%clk 0:00:02.5]} 31. Nb4 {[%clk 0:00:36.4]}
31... Rd8 {[%clk 0:00:02.9]} 32. Ra1 {[%clk 0:00:36.8]} 32... Rb8 {[%clk
0:00:02.9]} 33. Na6+ {[%clk 0:00:36.2]} 33... Kb7 {[%clk 0:00:03.5]} 34. Nxb8
{[%clk 0:00:37.1]} 34... Kxb8 {[%clk 0:00:03.7]} 35. b3 {[%clk 0:00:37.7]} 35...
f5 {[%clk 0:00:03.8]} 36. Ra5 {[%clk 0:00:37.5]} 36... f4 {[%clk 0:00:03.7]} 37.
Kf3 {[%clk 0:00:36.1]} 37... Kc7 {[%clk 0:00:02.6]} 38. Kxf4 {[%clk 0:00:35.7]}
38... Bd7 {[%clk 0:00:02.5]} 39. Ra7+ {[%clk 0:00:34.8]} 39... Kd6 {[%clk
0:00:02.7]} 40. c4 {[%clk 0:00:33.5]} 40... Be5+ {[%clk 0:00:02.3]} 41. Kf3
{[%clk 0:00:24.3]} 41... Bc3 {[%clk 0:00:02.4]} 42. Ra6+ {[%clk 0:00:20.9]}
42... Bc6+ {[%clk 0:00:02.6]} 43. Kg4 {[%clk 0:00:20.5]} 43... Bb4 {[%clk
0:00:02.2]} 44. f3 {[%clk 0:00:18.2]} 44... Bd2 {[%clk 0:00:01.4]} 45. g3 {[%clk
0:00:17]} 45... Kc5 {[%clk 0:00:01.7]} 46. Ra7 {[%clk 0:00:15.3]} 46... e6
{[%clk 0:00:01.2]} 47. Rxf7 {[%clk 0:00:15]} 47... e5 {[%clk 0:00:01.4]} 48. Rf6
{[%clk 0:00:13.8]} 1-0

[Event "Early-Titled-Tuesday-Blitz-March-26-2024"]
[Site "Chess.com"]
[Date "2024.03.26"]
[Round "6"]
[White "CFalcons8"]
[Black "theoneandonlydaaevik"]
[Result "1-0"]
[WhiteElo "2412"]
[BlackElo "2528"]
[TimeControl "180+1"]
[EndTime "9:05:21 PDT"]
[Termination "CFalcons8 won by resignation"]

1. d4 {[%clk 0:02:58.2]} 1... Nf6 {[%clk 0:02:34.5]} 2. Nf3 {[%clk 0:02:57.5]}
2... d5 {[%clk 0:02:34.4]} 3. c4 {[%clk 0:02:53.5]} 3... e6 {[%clk 0:02:34.1]}
4. g3 {[%clk 0:02:50.2]} 4... Bb4+ {[%clk 0:02:32.2]} 5. Bd2 {[%clk 0:02:50.2]}
5... Be7 {[%clk 0:02:31.5]} 6. Bg2 {[%clk 0:02:50.2]} 6... O-O {[%clk
0:02:31.6]} 7. O-O {[%clk 0:02:50.2]} 7... c6 {[%clk 0:02:31.7]} 8. Qc2 {[%clk
0:02:50]} 8... Nbd7 {[%clk 0:02:32.3]} 9. Rd1 {[%clk 0:02:49.5]} 9... a5 {[%clk
0:02:32.3]} 10. Bf4 {[%clk 0:02:47.9]} 10... b6 {[%clk 0:02:25.7]} 11. Nbd2
{[%clk 0:02:46.4]} 11... Bb7 {[%clk 0:02:25.2]} 12. e4 {[%clk 0:02:46]} 12...
dxe4 {[%clk 0:02:12.8]} 13. Nxe4 {[%clk 0:02:46.9]} 13... Nxe4 {[%clk
0:02:06.8]} 14. Qxe4 {[%clk 0:02:47.8]} 14... Nf6 {[%clk 0:02:05.9]} 15. Qe2
{[%clk 0:02:47.6]} 15... Rc8 {[%clk 0:02:06.2]} 16. Ne5 {[%clk 0:02:46.4]} 16...
Bd6 {[%clk 0:02:03.3]} 17. Rac1 {[%clk 0:02:45]} 17... Qe7 {[%clk 0:02:02.3]}
18. Bg5 {[%clk 0:02:27.4]} 18... h6 {[%clk 0:02:00.2]} 19. Bxf6 {[%clk
0:02:26.3]} 19... Qxf6 {[%clk 0:02:00.6]} 20. Nd7 {[%clk 0:02:25.9]} 20... Qe7
{[%clk 0:01:56.2]} 21. Nxf8 {[%clk 0:02:24.3]} 21... Kxf8 {[%clk 0:01:57.1]} 22.
Qe3 {[%clk 0:02:15.6]} 22... Rd8 {[%clk 0:01:45]} 23. c5 {[%clk 0:02:13]} 23...
Bc7 {[%clk 0:01:28]} 24. cxb6 {[%clk 0:02:09.7]} 24... Bxb6 {[%clk 0:01:28.9]}
25. Bxc6 {[%clk 0:02:10.1]} 25... Bxc6 {[%clk 0:01:29.4]} 26. Rxc6 {[%clk
0:02:11]} 26... Qb4 {[%clk 0:01:30.1]} 27. Qc3 {[%clk 0:02:04.5]} 27... Bxd4
{[%clk 0:01:29]} 28. Qxb4+ {[%clk 0:02:03.2]} 28... axb4 {[%clk 0:01:29.9]} 29.
Kg2 {[%clk 0:02:00.6]} 29... e5 {[%clk 0:01:27.3]} 30. a3 {[%clk 0:01:56.3]}
30... bxa3 {[%clk 0:00:59.4]} 31. bxa3 {[%clk 0:01:57.2]} 31... Rb8 {[%clk
0:00:59.6]} 32. f4 {[%clk 0:01:54.1]} 32... Rb2+ {[%clk 0:00:58.8]} 33. Kh3
{[%clk 0:01:52.1]} 33... f6 {[%clk 0:00:57.2]} 34. fxe5 {[%clk 0:01:51.8]} 34...
fxe5 {[%clk 0:00:58.1]} 35. Rf1+ {[%clk 0:01:49.3]} 35... Ke7 {[%clk 0:00:57.8]}
36. Rc7+ {[%clk 0:01:49.4]} 36... Kd6 {[%clk 0:00:57.7]} 37. Rxg7 {[%clk
0:01:50.3]} 37... Ra2 {[%clk 0:00:57.8]} 38. Rg6+ {[%clk 0:01:50]} 38... Kd5
{[%clk 0:00:58.3]} 39. Rxh6 {[%clk 0:01:50.9]} 39... Rxa3 {[%clk 0:00:58.3]} 40.
Rf7 {[%clk 0:01:49.6]} 40... Ke4 {[%clk 0:00:55.9]} 41. Rh4+ {[%clk 0:01:48.1]}
41... Ke3 {[%clk 0:00:55.1]} 42. Re7 {[%clk 0:01:48.1]} 42... Ra2 {[%clk
0:00:53.7]} 43. Re8 {[%clk 0:01:48.1]} 43... Kd3 {[%clk 0:00:52.2]} 44. Rg4
{[%clk 0:01:47]} 44... Bg1 {[%clk 0:00:50]} 45. Rb4 {[%clk 0:01:41.6]} 45...
Rxh2+ {[%clk 0:00:48.8]} 46. Kg4 {[%clk 0:01:42.1]} 46... Bd4 {[%clk 0:00:43.1]}
47. Kg5 {[%clk 0:01:40.6]} 47... Kc3 {[%clk 0:00:28.6]} 48. Ra4 {[%clk
0:01:38.5]} 48... Rg2 {[%clk 0:00:27.9]} 49. g4 {[%clk 0:01:38.5]} 49... Rf2
{[%clk 0:00:27.8]} 50. Kg6 {[%clk 0:01:38.2]} 50... Kb3 {[%clk 0:00:19]} 51.
Raa8 {[%clk 0:01:34]} 51... Kc3 {[%clk 0:00:18.8]} 52. Rac8+ {[%clk 0:01:32.1]}
52... Kd3 {[%clk 0:00:19.1]} 53. Ra8 {[%clk 0:01:28.2]} 53... Rf4 {[%clk
0:00:07.2]} 54. g5 {[%clk 0:01:27.8]} 54... e4 {[%clk 0:00:07.6]} 55. Ra3+
{[%clk 0:01:26.8]} 55... Ke2 {[%clk 0:00:05.1]} 56. Ra4 {[%clk 0:01:25.6]} 56...
e3 {[%clk 0:00:05.1]} 57. Kh7 {[%clk 0:01:22.6]} 57... Kf2 {[%clk 0:00:03.9]}
58. g6 {[%clk 0:01:20.2]} 58... e2 {[%clk 0:00:02.6]} 59. Ra2 {[%clk 0:01:11.3]}
59... Kf1 {[%clk 0:00:02.4]} 60. Raxe2 {[%clk 0:01:09]} 60... Rh4+ {[%clk
0:00:01.9]} 61. Kg8 {[%clk 0:01:09.4]} 61... Rf4 {[%clk 0:00:01.9]} 62. R2e4
{[%clk 0:01:07]} 62... Rf6 {[%clk 0:00:01.2]} 1-0

[Event "Early-Titled-Tuesday-Blitz-March-26-2024"]
[Site "Chess.com"]
[Date "2024.03.26"]
[Round "6"]
[White "monomita"]
[Black "artin10862"]
[Result "1-0"]
[WhiteElo "2776"]
[BlackElo "2891"]
[TimeControl "180+1"]
[EndTime "9:05:23 PDT"]
[Termination "monomita won by resignation"]

1. e4 {[%clk 0:02:51.3]} 1... c5 {[%clk 0:02:52.7]} 2. Nf3 {[%clk 0:02:51.1]}
2... Nc6 {[%clk 0:02:50.5]} 3. Bb5 {[%clk 0:02:51.2]} 3... e6 {[%clk 0:02:50]}
4. O-O {[%clk 0:02:49.3]} 4... Nge7 {[%clk 0:02:49.7]} 5. Re1 {[%clk 0:02:49.7]}
5... Nd4 {[%clk 0:02:39.5]} 6. Nxd4 {[%clk 0:02:45.3]} 6... cxd4 {[%clk
0:02:40.4]} 7. c3 {[%clk 0:02:45.6]} 7... a6 {[%clk 0:02:40.2]} 8. Bf1 {[%clk
0:02:45.6]} 8... Nc6 {[%clk 0:02:39.4]} 9. b4 {[%clk 0:02:46.1]} 9... dxc3
{[%clk 0:02:31.1]} 10. dxc3 {[%clk 0:02:45.6]} 10... a5 {[%clk 0:02:07.9]} 11.
b5 {[%clk 0:02:40.9]} 11... Nb8 {[%clk 0:02:07.7]} 12. c4 {[%clk 0:02:30.7]}
12... d6 {[%clk 0:02:05.3]} 13. Bf4 {[%clk 0:02:18.6]} 13... e5 {[%clk 0:01:54]}
14. Be3 {[%clk 0:02:14.5]} 14... Be6 {[%clk 0:01:51.5]} 15. Nc3 {[%clk
0:02:13.9]} 15... Nd7 {[%clk 0:01:51.4]} 16. Nd5 {[%clk 0:02:09.9]} 16... b6
{[%clk 0:01:47.9]} 17. f4 {[%clk 0:02:00.5]} 17... Be7 {[%clk 0:01:43.2]} 18.
Nxe7 {[%clk 0:01:55]} 18... Qxe7 {[%clk 0:01:30.2]} 19. f5 {[%clk 0:01:54.7]}
19... O-O {[%clk 0:01:30.7]} 20. fxe6 {[%clk 0:01:51.8]} 20... fxe6 {[%clk
0:01:31.6]} 21. Qd2 {[%clk 0:01:51.1]} 21... Rad8 {[%clk 0:01:30.9]} 22. Rad1
{[%clk 0:01:50.5]} 22... Nc5 {[%clk 0:01:31]} 23. Bg5 {[%clk 0:01:39.3]} 23...
Qc7 {[%clk 0:01:28.4]} 24. Bxd8 {[%clk 0:01:39.1]} 24... Rxd8 {[%clk 0:01:29.3]}
25. g3 {[%clk 0:01:34]} 25... Qe7 {[%clk 0:01:25.1]} 26. Bh3 {[%clk 0:01:33.1]}
26... g6 {[%clk 0:01:20.4]} 27. Qh6 {[%clk 0:01:30.9]} 27... Qf8 {[%clk
0:01:11.7]} 28. Qxf8+ {[%clk 0:01:27.5]} 28... Kxf8 {[%clk 0:01:12.6]} 29. Kf2
{[%clk 0:01:20.8]} 29... Ke7 {[%clk 0:01:09]} 30. Ke3 {[%clk 0:01:20.8]} 30...
Rf8 {[%clk 0:01:08.2]} 31. Rf1 {[%clk 0:01:20.1]} 31... Rxf1 {[%clk 0:01:07.8]}
32. Bxf1 {[%clk 0:01:18.7]} 32... Nd7 {[%clk 0:01:04.9]} 33. h4 {[%clk 0:01:18]}
33... h6 {[%clk 0:01:03.2]} 34. Be2 {[%clk 0:01:17.1]} 34... Nc5 {[%clk
0:01:02.2]} 35. Rf1 {[%clk 0:01:15.2]} 35... Nd7 {[%clk 0:00:59]} 36. g4 {[%clk
0:01:09]} 36... g5 {[%clk 0:00:51.3]} 37. Rh1 {[%clk 0:01:03.4]} 37... Kf6
{[%clk 0:00:38.2]} 38. Rf1+ {[%clk 0:00:56]} 38... Ke7 {[%clk 0:00:35.7]} 39.
hxg5 {[%clk 0:00:55.6]} 39... hxg5 {[%clk 0:00:36.6]} 40. Rh1 {[%clk 0:00:56]}
40... Nf8 {[%clk 0:00:33.2]} 41. c5 {[%clk 0:00:50.4]} 41... dxc5 {[%clk
0:00:32.1]} 42. Bc4 {[%clk 0:00:50.5]} 42... Kf6 {[%clk 0:00:22.5]} 43. Rf1+
{[%clk 0:00:46.1]} 43... Ke7 {[%clk 0:00:21.6]} 44. Rxf8 {[%clk 0:00:40.6]}
44... Kxf8 {[%clk 0:00:22.5]} 45. Bxe6 {[%clk 0:00:40.6]} 45... Ke7 {[%clk
0:00:11.6]} 46. Bd5 {[%clk 0:00:40.4]} 46... c4 {[%clk 0:00:10.5]} 47. Kd2
{[%clk 0:00:34.1]} 47... Kd6 {[%clk 0:00:10.4]} 48. Kc3 {[%clk 0:00:34.6]} 48...
Kc5 {[%clk 0:00:10]} 49. a4 {[%clk 0:00:35]} 49... Kd6 {[%clk 0:00:09.4]} 50.
Kxc4 {[%clk 0:00:35.2]} 50... Ke7 {[%clk 0:00:09.6]} 51. Bb7 {[%clk 0:00:35.1]}
51... Kd6 {[%clk 0:00:10.5]} 52. Bc8 {[%clk 0:00:34.6]} 1-0

[Event "Early-Titled-Tuesday-Blitz-March-26-2024"]
[Site "Chess.com"]
[Date "2024.03.26"]
[Round "6"]
[White "JimDiGrease"]
[Black "forevery0ung"]
[Result "0-1"]
[WhiteElo "2940"]
[BlackElo "2746"]
[TimeControl "180+1"]
[EndTime "9:05:29 PDT"]
[Termination "forevery0ung won by resignation"]

1. d4 {[%clk 0:03:00.9]} 1... e6 {[%clk 0:02:58.7]} 2. c4 {[%clk 0:02:59]} 2...
b6 {[%clk 0:02:58.5]} 3. e4 {[%clk 0:02:58.9]} 3... Bb4+ {[%clk 0:02:58.8]} 4.
Bd2 {[%clk 0:02:57.8]} 4... Bxd2+ {[%clk 0:02:58.6]} 5. Qxd2 {[%clk 0:02:58.7]}
5... Bb7 {[%clk 0:02:56.9]} 6. Nc3 {[%clk 0:02:53.7]} 6... Ne7 {[%clk
0:02:57.4]} 7. Nf3 {[%clk 0:02:23.8]} 7... O-O {[%clk 0:02:56.1]} 8. Bd3 {[%clk
0:02:21.1]} 8... d6 {[%clk 0:02:43.9]} 9. O-O {[%clk 0:02:19]} 9... Ng6 {[%clk
0:02:41.3]} 10. d5 {[%clk 0:02:08.3]} 10... Nd7 {[%clk 0:02:40.4]} 11. Rfe1
{[%clk 0:02:01.4]} 11... a6 {[%clk 0:02:38]} 12. Rac1 {[%clk 0:01:58.5]} 12...
Qf6 {[%clk 0:02:37.1]} 13. Ne2 {[%clk 0:01:43.5]} 13... Rae8 {[%clk 0:02:35.8]}
14. Ng3 {[%clk 0:01:41]} 14... Nf4 {[%clk 0:02:34.2]} 15. Bf1 {[%clk 0:01:35]}
15... a5 {[%clk 0:02:28.2]} 16. b3 {[%clk 0:01:33.6]} 16... h5 {[%clk
0:02:20.3]} 17. Qc3 {[%clk 0:01:18.4]} 17... e5 {[%clk 0:02:18]} 18. Ne2 {[%clk
0:01:12]} 18... Nc5 {[%clk 0:02:12.3]} 19. Nxf4 {[%clk 0:01:01.2]} 19... Qxf4
{[%clk 0:02:13.2]} 20. g3 {[%clk 0:00:53.4]} 20... Qf6 {[%clk 0:02:09.7]} 21.
Nd2 {[%clk 0:00:51.1]} 21... Bc8 {[%clk 0:02:03.9]} 22. a3 {[%clk 0:00:51.3]}
22... Bd7 {[%clk 0:01:46.7]} 23. b4 {[%clk 0:00:50.7]} 23... Nb7 {[%clk
0:01:47.2]} 24. f4 {[%clk 0:00:43.6]} 24... Qh6 {[%clk 0:01:40.8]} 25. f5 {[%clk
0:00:39.1]} 25... axb4 {[%clk 0:01:29.4]} 26. axb4 {[%clk 0:00:40]} 26... Ra8
{[%clk 0:01:29]} 27. Ra1 {[%clk 0:00:39.9]} 27... g6 {[%clk 0:01:17.1]} 28. Bh3
{[%clk 0:00:38.6]} 28... h4 {[%clk 0:01:11.5]} 29. Kg2 {[%clk 0:00:37.4]} 29...
f6 {[%clk 0:00:40.5]} 30. Rf1 {[%clk 0:00:25.1]} 30... Kg7 {[%clk 0:00:39.9]}
31. Nf3 {[%clk 0:00:18.7]} 31... hxg3 {[%clk 0:00:39.8]} 32. hxg3 {[%clk
0:00:18.6]} 32... Rh8 {[%clk 0:00:39.1]} 33. Bg4 {[%clk 0:00:13.7]} 33... gxf5
{[%clk 0:00:34.3]} 34. exf5 {[%clk 0:00:13]} 34... e4 {[%clk 0:00:29.4]} 35. Nh4
{[%clk 0:00:09.6]} 35... Rxa1 {[%clk 0:00:24.5]} 36. Rxa1 {[%clk 0:00:07.4]}
36... Qg5 {[%clk 0:00:25.1]} 37. Kh3 {[%clk 0:00:07.2]} 37... Nd8 {[%clk
0:00:18.8]} 38. Ra7 {[%clk 0:00:06.1]} 38... Nf7 {[%clk 0:00:18.9]} 39. Rxc7
{[%clk 0:00:05.9]} 39... Ne5 {[%clk 0:00:19.6]} 40. Be2 {[%clk 0:00:04.3]} 40...
Qxf5+ {[%clk 0:00:15.5]} 41. Kg2 {[%clk 0:00:03.7]} 41... Qh3+ {[%clk
0:00:15.7]} 42. Kf2 {[%clk 0:00:03.3]} 42... Rxh4 {[%clk 0:00:16]} 43. Qe1
{[%clk 0:00:01.6]} 43... Rg4 {[%clk 0:00:05.6]} 44. Bxg4 {[%clk 0:00:01.6]}
44... Nxg4+ {[%clk 0:00:05.4]} 45. Ke2 {[%clk 0:00:02.2]} 45... Qg2+ {[%clk
0:00:05.7]} 46. Kd1 {[%clk 0:00:02.8]} 46... Qf3+ {[%clk 0:00:06.1]} 47. Qe2
{[%clk 0:00:02.3]} 47... Qb3+ {[%clk 0:00:05.8]} 48. Qc2 {[%clk 0:00:02.5]}
48... Ne3+ {[%clk 0:00:05.5]} 49. Kd2 {[%clk 0:00:02.4]} 49... Qxc2+ {[%clk
0:00:05.9]} 50. Kxe3 {[%clk 0:00:02.9]} 50... Qd3+ {[%clk 0:00:06.6]} 51. Kf2
{[%clk 0:00:03.8]} 51... Qf3+ {[%clk 0:00:06.8]} 0-1

[Event "Early-Titled-Tuesday-Blitz-March-26-2024"]
[Site "Chess.com"]
[Date "2024.03.26"]
[Round "6"]
[White "djano"]
[Black "Pelusiansky"]
[Result "0-1"]
[WhiteElo "2654"]
[BlackElo "2543"]
[TimeControl "180+1"]
[EndTime "9:05:30 PDT"]
[Termination "Pelusiansky won by resignation"]

1. e4 {[%clk 0:03:00.9]} 1... e5 {[%clk 0:02:58.8]} 2. d4 {[%clk 0:03:00.4]}
2... exd4 {[%clk 0:02:51.4]} 3. Bc4 {[%clk 0:03:00.5]} 3... Nc6 {[%clk
0:02:49.9]} 4. Nf3 {[%clk 0:02:59.3]} 4... Nf6 {[%clk 0:02:43.1]} 5. O-O {[%clk
0:02:56.3]} 5... d6 {[%clk 0:02:34]} 6. Nxd4 {[%clk 0:02:55.8]} 6... Be7 {[%clk
0:02:29]} 7. Nc3 {[%clk 0:02:55.5]} 7... O-O {[%clk 0:02:28.9]} 8. h3 {[%clk
0:02:53.3]} 8... Bd7 {[%clk 0:02:28.5]} 9. Bf4 {[%clk 0:02:47.4]} 9... Re8
{[%clk 0:02:27.5]} 10. Re1 {[%clk 0:02:44]} 10... Bf8 {[%clk 0:02:27.4]} 11. a3
{[%clk 0:02:39.8]} 11... g6 {[%clk 0:02:23.6]} 12. Bg5 {[%clk 0:02:27.3]} 12...
Bg7 {[%clk 0:02:14.8]} 13. Nf3 {[%clk 0:02:09.3]} 13... Be6 {[%clk 0:01:57.7]}
14. Bb5 {[%clk 0:02:08.2]} 14... h6 {[%clk 0:01:53.6]} 15. Bh4 {[%clk
0:02:04.9]} 15... g5 {[%clk 0:01:48.2]} 16. Bg3 {[%clk 0:02:03.9]} 16... Nd7
{[%clk 0:01:49]} 17. Bxc6 {[%clk 0:01:57.5]} 17... bxc6 {[%clk 0:01:49.2]} 18.
Nd4 {[%clk 0:01:58.1]} 18... c5 {[%clk 0:01:43.4]} 19. Nc6 {[%clk 0:01:53]}
19... Qc8 {[%clk 0:01:42]} 20. Nd5 {[%clk 0:01:45.1]} 20... Qb7 {[%clk
0:01:35.2]} 21. Nce7+ {[%clk 0:01:34.4]} 21... Kh8 {[%clk 0:01:32.5]} 22. Rb1
{[%clk 0:01:28.6]} 22... c6 {[%clk 0:01:26.2]} 23. Bxd6 {[%clk 0:01:28.7]} 23...
cxd5 {[%clk 0:01:16.3]} 24. exd5 {[%clk 0:01:28.7]} 24... Rxe7 {[%clk
0:01:11.3]} 25. Bxe7 {[%clk 0:01:19.5]} 25... Bxd5 {[%clk 0:01:11.7]} 26. Qg4
{[%clk 0:01:04.4]} 26... Ne5 {[%clk 0:01:05.9]} 27. Rxe5 {[%clk 0:00:49.1]}
27... Bxe5 {[%clk 0:01:06.2]} 28. Bxc5 {[%clk 0:00:49.4]} 28... Qc6 {[%clk
0:00:51.3]} 29. b4 {[%clk 0:00:44.9]} 29... Bg7 {[%clk 0:00:47.1]} 30. Rd1
{[%clk 0:00:41.6]} 30... a5 {[%clk 0:00:43.9]} 31. Bd4 {[%clk 0:00:32.7]} 31...
Be6 {[%clk 0:00:41]} 32. Bxg7+ {[%clk 0:00:31.7]} 32... Kxg7 {[%clk 0:00:41.2]}
33. Qd4+ {[%clk 0:00:32.4]} 33... Kg8 {[%clk 0:00:41]} 34. Qf6 {[%clk
0:00:31.9]} 34... Qxc2 {[%clk 0:00:38.5]} 35. Rd8+ {[%clk 0:00:28.1]} 35... Rxd8
{[%clk 0:00:38.7]} 36. Qxd8+ {[%clk 0:00:29]} 36... Kh7 {[%clk 0:00:39.3]} 37.
Qxa5 {[%clk 0:00:29.6]} 37... Qc1+ {[%clk 0:00:35.3]} 38. Kh2 {[%clk 0:00:29.7]}
38... Qf4+ {[%clk 0:00:35.3]} 39. Kg1 {[%clk 0:00:30.2]} 39... g4 {[%clk
0:00:35.1]} 40. hxg4 {[%clk 0:00:29.5]} 40... Qc1+ {[%clk 0:00:35.2]} 41. Kh2
{[%clk 0:00:29.6]} 41... Qf4+ {[%clk 0:00:35.8]} 42. Kg1 {[%clk 0:00:30.1]}
42... Qxg4 {[%clk 0:00:34.3]} 43. Qc5 {[%clk 0:00:22.7]} 43... Qd1+ {[%clk
0:00:30.4]} 44. Kh2 {[%clk 0:00:23]} 44... Bd5 {[%clk 0:00:28.7]} 45. f3 {[%clk
0:00:21.1]} 45... Be6 {[%clk 0:00:16.3]} 46. b5 {[%clk 0:00:18.4]} 46... Qb3
{[%clk 0:00:16.6]} 47. b6 {[%clk 0:00:16.9]} 47... Bd5 {[%clk 0:00:16.8]} 48. a4
{[%clk 0:00:13.8]} 48... Qa2 {[%clk 0:00:16.8]} 49. a5 {[%clk 0:00:13.4]} 49...
Kg6 {[%clk 0:00:15.6]} 50. Qd6+ {[%clk 0:00:12.9]} 50... f6 {[%clk 0:00:15.4]}
51. a6 {[%clk 0:00:12.6]} 51... Qxa6 {[%clk 0:00:13.1]} 52. Qxd5 {[%clk
0:00:12.6]} 52... Qxb6 {[%clk 0:00:13.5]} 53. Qg8+ {[%clk 0:00:13.1]} 53... Kf5
{[%clk 0:00:13.3]} 54. Qg4+ {[%clk 0:00:13.7]} 54... Ke5 {[%clk 0:00:13.9]} 55.
Qh5+ {[%clk 0:00:14.3]} 55... f5 {[%clk 0:00:13.5]} 56. Qxh6 {[%clk 0:00:15.2]}
56... Qxh6+ {[%clk 0:00:13.6]} 0-1

[Event "Early-Titled-Tuesday-Blitz-March-26-2024"]
[Site "Chess.com"]
[Date "2024.03.26"]
[Round "6"]
[White "MalyDominator"]
[Black "The_Straightforward_Rook"]
[Result "1-0"]
[WhiteElo "2568"]
[BlackElo "2409"]
[TimeControl "180+1"]
[EndTime "9:05:30 PDT"]
[Termination "MalyDominator won on time"]

1. e4 {[%clk 0:03:00.9]} 1... e5 {[%clk 0:02:51.3]} 2. Nf3 {[%clk 0:03:00.4]}
2... Nc6 {[%clk 0:02:51.2]} 3. Bb5 {[%clk 0:03:01]} 3... Nf6 {[%clk 0:02:51.7]}
4. d3 {[%clk 0:03:00.6]} 4... Bc5 {[%clk 0:02:51.3]} 5. O-O {[%clk 0:03:00.7]}
5... Nd4 {[%clk 0:02:51.8]} 6. Nxd4 {[%clk 0:03:00.2]} 6... Bxd4 {[%clk
0:02:52.7]} 7. c3 {[%clk 0:02:59.8]} 7... Bb6 {[%clk 0:02:52.3]} 8. a4 {[%clk
0:02:59.7]} 8... c6 {[%clk 0:02:47.6]} 9. Bc4 {[%clk 0:02:59.8]} 9... O-O {[%clk
0:02:48.1]} 10. Kh1 {[%clk 0:02:59.3]} 10... d5 {[%clk 0:02:42.3]} 11. exd5
{[%clk 0:02:58.9]} 11... cxd5 {[%clk 0:02:41.8]} 12. Bb3 {[%clk 0:02:59.4]}
12... Bg4 {[%clk 0:02:41.1]} 13. f3 {[%clk 0:02:53.2]} 13... Bh5 {[%clk
0:02:37.9]} 14. a5 {[%clk 0:02:53.1]} 14... Bc7 {[%clk 0:02:37.3]} 15. a6 {[%clk
0:02:52.5]} 15... Rb8 {[%clk 0:02:34.5]} 16. Bg5 {[%clk 0:02:49.4]} 16... bxa6
{[%clk 0:02:20.9]} 17. Rxa6 {[%clk 0:02:48.1]} 17... Bb6 {[%clk 0:02:07.6]} 18.
Nd2 {[%clk 0:02:38.5]} 18... h6 {[%clk 0:02:06.3]} 19. Bxf6 {[%clk 0:02:36.4]}
19... gxf6 {[%clk 0:02:03]} 20. Qe1 {[%clk 0:02:30.9]} 20... Bg6 {[%clk
0:02:02.3]} 21. Bc2 {[%clk 0:02:25.8]} 21... Kh7 {[%clk 0:01:54.9]} 22. Ra4
{[%clk 0:02:25.3]} 22... Rg8 {[%clk 0:01:41.7]} 23. Rh4 {[%clk 0:02:23.1]} 23...
Bc7 {[%clk 0:01:37.6]} 24. b4 {[%clk 0:02:18.7]} 24... f5 {[%clk 0:01:36.9]} 25.
f4 {[%clk 0:01:46.3]} 25... e4 {[%clk 0:01:29.7]} 26. Nb3 {[%clk 0:01:43.8]}
26... Qf6 {[%clk 0:01:12.5]} 27. Nc5 {[%clk 0:01:38.4]} 27... Rbe8 {[%clk
0:01:07.4]} 28. dxe4 {[%clk 0:01:11]} 28... dxe4 {[%clk 0:01:01.9]} 29. Rh3
{[%clk 0:01:03.9]} 29... a5 {[%clk 0:00:46]} 30. Qe2 {[%clk 0:00:49.1]} 30...
Rd8 {[%clk 0:00:42.1]} 31. Nb7 {[%clk 0:00:37.1]} 31... axb4 {[%clk 0:00:34.6]}
32. Nxd8 {[%clk 0:00:36.5]} 32... Rxd8 {[%clk 0:00:35.5]} 33. cxb4 {[%clk
0:00:36.7]} 33... Qb2 {[%clk 0:00:26.5]} 34. Rb3 {[%clk 0:00:31.3]} 34... Qa2
{[%clk 0:00:20.1]} 35. b5 {[%clk 0:00:30.5]} 35... Bb6 {[%clk 0:00:20.3]} 36.
Rc3 {[%clk 0:00:25.5]} 36... Bd4 {[%clk 0:00:18.9]} 37. Rb3 {[%clk 0:00:24.8]}
37... Bb6 {[%clk 0:00:18.4]} 38. Qc4 {[%clk 0:00:16.6]} 38... Rd7 {[%clk
0:00:15.8]} 39. Rc3 {[%clk 0:00:14]} 39... Rc7 {[%clk 0:00:14.9]} 40. Qxa2
{[%clk 0:00:13]} 40... Rxc3 {[%clk 0:00:13.2]} 41. Qb2 {[%clk 0:00:11.8]} 41...
Re3 {[%clk 0:00:06.9]} 42. Qf6 {[%clk 0:00:09.7]} 42... Bc7 {[%clk 0:00:06.3]}
43. h3 {[%clk 0:00:09]} 43... Re2 {[%clk 0:00:05.4]} 44. Bd1 {[%clk 0:00:08.8]}
44... Rd2 {[%clk 0:00:04.9]} 45. b6 {[%clk 0:00:08.6]} 45... Bb8 {[%clk
0:00:04.9]} 46. b7 {[%clk 0:00:08.7]} 46... e3 {[%clk 0:00:02.4]} 47. Bf3 {[%clk
0:00:07.9]} 47... e2 {[%clk 0:00:01.2]} 48. Bxe2 {[%clk 0:00:07.7]} 48... Rxe2
{[%clk 0:00:01.3]} 49. Qd8 {[%clk 0:00:07.7]} 1-0